Cogmind - Beta 9.6 @@@ ROGUE MODE // 2020.08.24 @ 20:34:54 Player: Cracklepappy Result: Destroyed by as-89145 with Assembled Heavy Rifle Performance ------------- Evolutions (1) 500 Regions Visited (5) 1000 Robots Destroyed (53) 265 Value Destroyed (649) 649 Prototype IDs (32) 640 Alien Tech Used (0) 0 Bonus (-653) -653 TOTAL SCORE: 2401 Bonus ------- High Alert Combat Kills 8 Follower Combat Kills 414 Aligned with FarCom 300 Friendly Fire -1375 Cogmind --------- Core Integrity 0/400 Matter 200/300 Energy 275/280 System Corruption 0% Temperature Cool (0) Movement Treading (200) Ox2 Location -9/Exiles Parts ------- > --- POWER (1) -------- Cooled Ion Engine > --- PROPULSION (2) --- Light Treads Improved Treads > --- UTILITY (4) ------ High-capacity Storage Unit Humpback > --- WEAPON (2) ------- Katana Katana > --- INVENTORY (32) --- Cooled Ion Engine Cooled Ion Engine Cooled Ion Engine Improved Heat Sink Advanced Heat Sink Large Storage Unit High-capacity Storage Unit High-capacity Storage Unit High-capacity Storage Unit High-capacity Storage Unit High-capacity Storage Unit Large Battery (300) Large Matter Pod (110) High-capacity Matter Pod (200) Improved Targeting Computer Transmission Jammer Chronowheel Minigun Minigun Minigun Minigun XL Autogun Array Mini Grenade Launcher Mini Grenade Launcher Datajack Field Lobotomy Kit Peak State ------------ > --- POWER ------------ Light Angular Momentum Engine > --- PROPULSION ------- Light Treads Light Treads > --- UTILITY ---------- High-capacity Storage Unit Humpback Light Armor Plating > --- WEAPON ----------- Minigun Minigun > --- INVENTORY -------- Cooled Ion Engine Cooled Ion Engine Cooled Ion Engine Cooled Ion Engine Light Treads Improved Treads Improved Heat Sink Advanced Heat Sink Large Storage Unit High-capacity Storage Unit High-capacity Storage Unit High-capacity Storage Unit High-capacity Storage Unit High-capacity Storage Unit Large Battery Large Matter Pod High-capacity Matter Pod Improved Targeting Computer Transmission Jammer Chronowheel Minigun Minigun XL Autogun Array Mini Grenade Launcher Mini Grenade Launcher Datajack Field Lobotomy Kit Katana Katana [Rating: 28] Favorites ----------- Power Light Ion Engine Engine Light Ion Engine Propulsion Light Treads Treads Light Treads Wheel Compact Wheel Utility Large Storage Unit Storage Large Storage Unit Processor Signal Interpreter Protection Light Armor Plating Weapon Minigun Energy Gun EM Pulse Gun Ballistic Gun Minigun Launcher Grenade Launcher Special Weapon Mining Laser Slashing Weapon Katana Special Melee Weapon Datajack Build | -11 -10 -10 -9 -9 -9 ------- Run | Scr Mat Min Mat Min Exi Slots Evolved 2 | . . . 2 . . Power . | . . . . . . Propulsion . | . . . . . . Utility 2 | . . . 2 . . Weapon . | . . . . . . Parts Attached 59 | 7 6 10 15 9 12 Power 6 | 1 . 1 2 1 1 Engine 6 | 1 . 1 2 1 1 Core . | . . . . . . Reactor . | . . . . . . Propulsion 12 | 2 . 2 4 2 2 Treads 6 | . . 2 . 2 2 Leg . | . . . . . . Wheel 6 | 2 . . 4 . . Hover . | . . . . . . Flight . | . . . . . . Utility 12 | 2 2 . 2 1 5 Device . | . . . . . . Storage 10 | 2 2 . 2 . 4 Processor 1 | . . . . 1 . Hackware . | . . . . . . Protection 1 | . . . . . 1 Artifact . | . . . . . . Weapon 29 | 2 4 7 7 5 4 Energy Gun 1 | 1 . . . . . Energy Cannon . | . . . . . . Ballistic Gun 9 | . 1 4 2 2 . Ballistic Cannon . | . . . . . . Launcher 10 | . 2 3 4 . 1 Special Weapon 2 | 1 1 . . . . Impact Weapon . | . . . . . . Slashing Weapon 5 | . . . . 2 3 Piercing Weapon . | . . . . . . Special Melee Weapon 2 | . . . 1 1 . Unidentified Prototypes 1 | . . . 1 . . Parts Lost 8 | . 1 2 1 . 4 Power 2 | . . 1 . . 1 Propulsion 3 | . . . 1 . 2 Utility 1 | . . . . . 1 Weapon 2 | . 1 1 . . . Highest Loss Streak 4 | . 1 1 1 . 4 Average Slot Usage (%) 95 | . 99 98 88 99 91 Engine 12 | . 14 13 11 11 10 Treads 13 | . . 25 . 5 22 Wheel 10 | . 28 2 22 16 . Storage 30 | . 28 28 33 41 25 Processor 2 | . . . . 2 7 Ballistic Gun 12 | . 1 4 15 21 20 Launcher 8 | . 6 21 6 . . Special Weapon 1 | . 10 . . . . Naked Turns . | . . . . . . Heaviest Build 130 | 14 40 41 62 63 130 Greatest Support 40 | 26 26 40 26 40 40 Greatest Overweight (x) 3 | 1 1 1 2 2 3 Average Overweight (x) 1 | . . . 1 1 2 Largest Inventory Capacity 32 | 8 16 16 24 24 32 Average Capacity 20 | 7 14 16 20 23 29 Most Carried 32 | 8 16 16 24 24 32 Average Carried 19 | 5 13 15 19 23 27 Final Capacity 32 | 8 16 16 24 20 32 Final Carried 29 | 7 16 16 24 20 29 Class Distribution -------------------- 51% | Mutant 48% | Hauler-Mutant Dominant Class ---------------- Mutant | -10/Materials Mutant | -10/Mines Hauler-Mutant | -9/Materials Hauler-Mutant | -9/Mines Hauler-Mutant | -9/Exiles Resources | -11 -10 -10 -9 -9 -9 ----------- Run | Scr Mat Min Mat Min Exi Matter Collected 1702 | 259 63 721 385 234 40 Remotely . | . . . . . . Salvage Created 1079 | 123 81 211 355 293 16 Parts 69 | 10 9 10 31 9 . Haulers Intercepted 3 | . 1 . 2 . . Recyclers Shooed 4 | . 1 1 1 1 . Parts Field Recycled . | . . . . . . Retrieved Matter . | . . . . . . Parts Self-Destructed . | . . . . . . Prevented . | . . . . . . Kills | -11 -10 -10 -9 -9 -9 ------- Run | Scr Mat Min Mat Min Exi Combat Hostiles Destroyed 34 | . 5 15 6 3 5 Guns 11 | . 1 3 4 3 . AOE 23 | . 4 12 2 . 5 Classes Destroyed 13 | 2 4 4 2 1 . Worker 4 | . . 3 1 . . Builder 2 | . . . 2 . . Tunneler 2 | 2 . . . . . Hauler 3 | . 1 . 2 . . Recycler 2 | 1 . . . 1 . Watcher 3 | . 1 . 2 . . Swarmer 6 | . 3 1 1 1 . Grunt 7 | . 2 2 2 1 . Brawler 1 | . . . . 1 . Sentry 3 | . . . 3 . . Demolisher 1 | . . 1 . . . Zionite 1 | . . 1 . . . Assembled 16 | . . 11 . . 5 Thug 1 | . . 1 . . . Best Kill Streak 8 | 2 3 8 6 2 5 Combat Bots Only 8 | . 3 8 2 1 5 Max Kills in Single Turn 3 | 1 2 2 2 1 3 Gunslinging . | . . . . . . Exploded 3 | . 2 2 1 . 3 Melee . | . . . . . . Uniques/NPCs Destroyed 1 | . . . . 1 . YI-UF0 (-9/Mines) Combat | -11 -10 -10 -9 -9 -9 -------- Run | Scr Mat Min Mat Min Exi Damage Taken 2290 | . 159 444 325 60 1302 Core 526 | . 6 119 97 11 293 Absorbed by Shields . | . . . . . . Core Remaining (%) 75 | 100 . 50 . . . Volleys Fired 132 | 6 31 37 36 18 4 Largest 2 | 1 1 2 2 2 1 Hottest 100 | 40 100 100 50 50 30 Shots Fired 194 | 6 31 64 53 36 4 Gun 136 | 6 13 35 46 36 . Cannon . | . . . . . . Launcher 41 | . 8 22 7 . 4 Special 17 | . 10 7 . . . Kinetic 123 | . 6 35 46 36 . Thermal 17 | . 10 7 . . . Explosive 41 | . 8 22 7 . 4 Electromagnetic 13 | 6 7 . . . . Robot Hit Streak 21 | 4 5 12 21 5 5 Robot Miss Streak 5 | 1 3 4 3 5 . Penetration Max . | . . . . . . Secondary Targets . | . . . . . . Shots Hit Robots 132 | 5 9 31 37 21 29 Core Hits 92 | 4 11 35 24 7 11 Critical Hits 2 | . . . . . 2 Critical Kills . | . . . . . . Critical Parts Destroyed 1 | . . . . . 1 Melee Attacks 30 | . . . 2 2 26 Impact . | . . . . . . Slashing 27 | . . . . 1 26 Piercing . | . . . . . . Sneak Attacks 5 | . . . 2 2 1 Combat Hostiles . | . . . . . . Follow-up Attacks 4 | . . . . . 4 Damage Inflicted 4412 | 53 510 1079 937 465 1368 Guns 1266 | 53 85 290 480 358 . Cannons . | . . . . . . Explosions 2155 | . 425 789 457 . 484 Melee 991 | . . . . 107 884 Ramming . | . . . . . . Kinetic 1177 | . 49 290 480 358 . Thermal . | . . . . . . Explosive 2155 | . 425 789 457 . 484 Electromagnetic 89 | 53 36 . . . . Impact . | . . . . . . Slashing 991 | . . . . 107 884 Piercing . | . . . . . . Highest Corruption . | . . . . . . Average Corruption . | . . . . . . Corruption Purged . | . . . . . . Overload Shots . | . . . . . . Overflow Damage 29 | . . . . . 29 Projectiles . | . . . . . . Explosions 25 | . . . . . 25 Melee 4 | . . . . . 4 Knockbacks . | . . . . . . Impact . | . . . . . . Kinetic . | . . . . . . Secondary . | . . . . . . Self-Inflicted Damage 135 | . 35 49 . . 51 Shots 7 | . 2 2 . . 3 Rammed . | . . . . . . Targets Rammed . | . . . . . . Kicked . | . . . . . . Crushed . | . . . . . . Highest Temperature 40 | . 21 40 9 6 . Average Temperature 14 | . 12 17 9 6 . Received Heat Transfer 263 | . 36 98 123 6 . Siege Activations . | . . . . . . Robots Corrupted . | . . . . . . Combat Hostiles . | . . . . . . Parts Fried . | . . . . . . Impact Corruptions . | . . . . . . Robots Melted . | . . . . . . Combat Hostiles . | . . . . . . Parts Melted . | . . . . . . Heat Transferred . | . . . . . . Parts Sabotaged . | . . . . . . Parts Stolen . | . . . . . . Parts Stripped . | . . . . . . Power Chain Reactions . | . . . . . . Missiles Intercepted . | . . . . . . Alert | -11 -10 -10 -9 -9 -9 ------- Run | Scr Mat Min Mat Min Exi Peak Influence 460 | 15 150 122 460 215 . Average Influence 103 | 6 29 48 259 99 . Maximum Alert Level 2 | . . . 2 1 . Low Security (%) 82 | 100 100 100 24 99 . Level 1 17 | . . . 73 . . Level 2 . | . . . 1 . . Level 3 . | . . . . . . Level 4 . | . . . . . . Level 5 . | . . . . . . High Security . | . . . . . . Max Security . | . . . . . . Squads Dispatched 3 | . 1 . 2 . . Investigation 1 | . . . 1 . . Extermination . | . . . . . . Reinforcement 2 | . 1 . 1 . . Assault . | . . . . . . Garrison . | . . . . . . Intercept . | . . . . . . Construction Impeded 1 | . . . 1 . . Haulers Reinforced . | . . . . . . Stealth | -11 -10 -10 -9 -9 -9 --------- Run | Scr Mat Min Mat Min Exi Distress Signals . | . . . . . . Communications Jammed . | . . . . . . Distress Signals . | . . . . . . Times Spotted 62 | . 11 17 23 3 8 Peak Tracking Total 9 | . 5 3 6 2 9 Tactical Retreats 1 | . . 1 . . . Traps | -11 -10 -10 -9 -9 -9 ------- Run | Scr Mat Min Mat Min Exi Traps Triggered . | . . . . . . Indirectly . | . . . . . . Trap Hack Attempts . | . . . . . . Triggered . | . . . . . . Disarmed . | . . . . . . Reprogrammed . | . . . . . . Reused . | . . . . . . Traps Extracted . | . . . . . . Installed . | . . . . . . Triggered . | . . . . . . Machines | -11 -10 -10 -9 -9 -9 ---------- Run | Scr Mat Min Mat Min Exi Machines Disabled 4 | . . . 1 1 2 Max in Single Turn 1 | . . . 1 1 1 Machines Sabotaged . | . . . . . . Garrisons Compromised . | . . . . . . Overloaded Fab Kills . | . . . . . . Fab Network Shutdowns . | . . . . . . Hacking | -11 -10 -10 -9 -9 -9 --------- Run | Scr Mat Min Mat Min Exi Machines Accessed 9 | . 4 . 4 . 1 Terminals 8 | . 4 . 4 . . Fabricators . | . . . . . . Repair Stations . | . . . . . . Recycling Units . | . . . . . . Scanalyzers . | . . . . . . Garrison Access . | . . . . . . Total Hacks 21 | . 8 . 12 . 1 Successful 9 | . 3 . 5 . 1 Failed 12 | . 5 . 7 . . Catastrophic 2 | . 2 . . . . Database Lockouts . | . . . . . . Manual 17 | . 5 . 5 . 7 Terminals 20 | . 8 . 12 . . Fabricators . | . . . . . . Repair Stations . | . . . . . . Recycling Units . | . . . . . . Scanalyzers . | . . . . . . Garrison Access . | . . . . . . Terminal Hacks 9 | . 3 . 5 . 1 Part Schematic 1 | . . . 1 . . Prototype ID Bank 4 | . 1 . 3 . . Locate Traps 1 | . 1 . . . . Zone Layout 2 | . 1 . 1 . . EX-Prototype ID Bank 1 | . . . . . 1 Fabricator Hacks . | . . . . . . Repair Station Hacks . | . . . . . . Recycling Unit Hacks . | . . . . . . Scanalyzer . | . . . . . . Garrison Access Hacks . | . . . . . . Unauthorized Hacks . | . . . . . . Terminals . | . . . . . . Fabricators . | . . . . . . Repair Stations . | . . . . . . Recycling Units . | . . . . . . Scanalyzers . | . . . . . . Garrison Access . | . . . . . . Data Cores Recovered . | . . . . . . Used . | . . . . . . Hacking Detections 8 | . 4 . 4 . . Full Trace Events . | . . . . . . Feedback Events . | . . . . . . Feedback Blocked . | . . . . . . Robot Schematics Acquired . | . . . . . . Robots Built . | . . . . . . Matter . | . . . . . . Time . | . . . . . . Total Robot Build Rating . | . . . . . . Part Schematics Acquired 1 | . . . 1 . . Parts Built . | . . . . . . Matter . | . . . . . . Time . | . . . . . . Total Part Build Rating . | . . . . . . Parts Repaired . | . . . . . . Time . | . . . . . . Parts Recycled . | . . . . . . Recycled Matter . | . . . . . . Retrieved Matter . | . . . . . . Retrieved Components . | . . . . . . Parts Scanalyzed . | . . . . . . Part Schematics Acquired . | . . . . . . Parts Damaged . | . . . . . . Bothacking | -11 -10 -10 -9 -9 -9 ------------ Run | Scr Mat Min Mat Min Exi Used RIF Installer . | . . . . . . Robots Hacked 3 | . . . 2 1 . Non-combat . | . . . . . . Combat 3 | . . . 2 1 . Robot Hacks Applied 3 | . . . 2 1 . parse_system 3 | . . . 2 1 . Relay Couplers Released . | . . . . . . Robots Rewired . | . . . . . . Allies Hacked . | . . . . . . Hacks Repelled . | . . . . . . Allies | -11 -10 -10 -9 -9 -9 -------- Run | Scr Mat Min Mat Min Exi Total Allies 6 | . . 5 . 1 . Largest Group 5 | . . 5 3 1 . Highest-Rated Group 86 | . . 86 40 31 . Highest-Rated Ally 31 | . . 31 16 31 . Total Orders 1 | . . . 1 . . FOLLOW 1 | . . . 1 . . Ally Attacks 70 | . . 14 49 7 . Total Damage 904 | . . 241 599 64 . Kills 19 | . . 4 13 2 . Allies Corrupted . | . . . . . . Allies Melted . | . . . . . . Intel | -11 -10 -10 -9 -9 -9 ------- Run | Scr Mat Min Mat Min Exi Robot Analysis Total . | . . . . . . Derelict Logs Recovered 3 | . . 2 . 1 . Drone Launches . | . . . . . . Drone Recoveries . | . . . . . . Exploration | -11 -10 -10 -9 -9 -9 ------------- Run | Scr Mat Min Mat Min Exi Turns Passed 5053 | 112 570 1538 912 790 1131 Spaces Moved 3100 | 81 464 801 691 570 493 Core 3 | 3 . . . . . Treads 1297 | . . 709 . 95 493 Legs . | . . . . . . Wheels 1800 | 78 464 92 691 475 . Hover . | . . . . . . Flight . | . . . . . . Fastest Speed 50 | 50 90 100 100 110 180 Average Speed 139 | 90 97 167 104 121 208 Slowest Speed 220 | 100 100 180 110 180 220 Overloaded Moves . | . . . . . . Propulsion Burnouts . | . . . . . . Robots Hopped . | . . . . . . Cave-ins Triggered . | . . . . . . Exploration Rate (%) 65 | 4 60 100 61 94 76 Regions Visited 5 Branch Regions 3 Pre-discovered Areas . | . . . . . . Known Exits Taken 2 | . . . 1 1 . Unknown Exits Taken 3 | 1 1 1 . . . Scrap Searched 2 | . . 1 . 1 . Spaces Dug 21 | . 10 7 4 . . Terrain Destroyed 227 | . 33 127 37 . 30 Melee . | . . . . . . Projectile 17 | . 10 7 . . . AOE 210 | . 23 120 37 . 30 Actions | -11 -10 -10 -9 -9 -9 --------- Run | Scr Mat Min Mat Min Exi Total 3598 | 112 531 915 843 638 559 Wait 163 | 5 8 65 56 29 . Move 3095 | 80 463 800 690 569 493 Hop . | . . . . . . Pick Up 81 | 12 15 2 26 3 23 Fast Attach 9 | 4 1 . 2 1 1 Attach 14 | 3 1 1 5 1 3 Detach . | . . . . . . Swap 36 | . 4 9 8 7 8 Drop 42 | 2 8 1 18 8 5 Fire 132 | 6 31 37 36 18 4 Melee 26 | . . . 2 2 22 Ram . | . . . . . . Kick . | . . . . . . Crush . | . . . . . . Escape Stasis . | . . . . . . Rewire . | . . . . . . Trap . | . . . . . . Miscellaneous . | . . . . . . Route ------- -11/Scrapyard -10/Materials (discovered 3 exits: *Mat x2 / [*Min]) -10/Mines (discovered 2 exits: *Mat x2) -9/Materials (discovered 3 exits: [*Mat x2] / *Min) -9/Mines (discovered 4 exits: [*Mat x2] / *Exi / *Zio) -9/Exiles (discovered 1 exit: Min) History --------- Turn | Location | Event 2 | -11/Scrapyard | Met Revision 17 19 | -11/Scrapyard | Discovered new exit (range 15) 113 | -11/Scrapyard | Entered Materials 257 | -10/Materials | Discovered new exit (range 16) 301 | -10/Materials | Build established: Mutant 473 | -10/Materials | Discovered new exit (range 16) 641 | -10/Materials | Discovered new exit (range 15) 683 | -10/Materials | Entered Mines 691 | -10/Mines | Assembled infested the area 860 | -10/Mines | Destroyed 8 combat bots 1413 | -10/Mines | Discovered new exit (range 10) 1499 | -10/Mines | Discovered new exit (range 6) 1627 | -10/Mines | Assisted by bots powering up and referring to "LRC-V3" 1675 | -10/Mines | Learned Materials emergency access door positions 2221 | -10/Mines | Entered Materials 2221 | -9/Materials | Accompanied by 3 allies 2221 | -9/Materials | Evolved 2 slots: Utility x2 2222 | -9/Materials | Identified exit to Mines 2467 | -9/Materials | Discovered new exit (range 3) 2892 | -9/Materials | Build established: Hauler-Mutant 2918 | -9/Materials | Discovered new exit (range 16) 3133 | -9/Materials | Entered Mines 3150 | -9/Mines | Learned Materials emergency access door positions 3165 | -9/Mines | Assisted by bots powering up and referring to "LRC-V3" 3188 | -9/Mines | Destroyed YI-UF0 3202 | -9/Mines | Discovered new exit (range 13) 3352 | -9/Mines | Discovered new exit (range 9) 3355 | -9/Mines | Received a Mining Laser from a helpful Derelict 3371 | -9/Mines | Deemed a non-threat by the Exiles lab entrance 3371 | -9/Mines | Discovered new exit (range 5) 3620 | -9/Mines | A Derelict revealed a hidden shortcut to a safe place 3779 | -9/Mines | Identified exit to Zion 3922 | -9/Mines | Identified exit to Exiles 3923 | -9/Mines | Entered Exiles 3924 | -9/Exiles | Identified exit to Mines 3967 | -9/Exiles | Met 8R-AWN 3995 | -9/Exiles | Met EX-HEX 4124 | -9/Exiles | Met EX-DEC 4159 | -9/Exiles | Visited The Gauntlet 4522 | -9/Exiles | Met EX-BIN 4659 | -9/Exiles | Aligned with FarCom system 4661 | -9/Exiles | Given EX-Vault access code 4711 | -9/Exiles | Opened EX-Vault 4722 | -9/Exiles | Found Chronowheel 4734 | -9/Exiles | Found Field Lobotomy Kit 4747 | -9/Exiles | Found XL Autogun Array 4792 | -9/Exiles | Warned to stay clear of 0b10 Research branches 4987 | -9/Exiles | Attacked by the Exiles 5016 | -9/Exiles | Core integrity fell below 50% 5034 | -9/Exiles | Core integrity fell below 20% 5054 | -9/Exiles | Destroyed by as-89145 with Assembled Heavy Rifle Last Messages --------------- 05026_ Penetrated by HV Slug. 05026_ HV Slug penetrates Earth. 05027_ Penetrated by HV Slug. 05027_ HV Slug penetrates Earth. 05028_ Katana follow-up attack on 8R-AWN. 05029_ Penetrated by HV Slug. 05030_ HV Slug penetrates Wall. 05032_ Penetrated by HV Slug. 05033_ HV Slug penetrates Machine. 05035_ Penetrated by HV Slug. 05036_ HV Slug penetrates Wall. 05038_ Penetrated by HV Slug. 05039_ HV Slug penetrates Wall. 05041_ The unstable cave ceiling collapses. 05041_ Penetrated by HV Slug. 05043_ The unstable cave ceiling collapses. 05044_ 8R-AWN suffers critical hit. 05044_ Penetrated by HV Slug. 05052_ The unstable cave ceiling collapses. 05054_ Penetrated by HV Slug. Map ----- +----------------------------------------------------+ | """#?????????????????????????????????????????????? | | """#?????????????????????????????????????????????? | | """#?????????????????????????????????????????????? | | """#?????????????????????????????????????????????? | | """#?????????????????????????????????????????????? | | """#?????????????????????????????????????????????? | | """#?????????????????????????????????????????????? | | """#?????????????????????????????????????????????? | | """#?????????????????????????????????????????????? | | """""????????????????????????????????????????????? | | """#?????????????????????????????????????????????? | | """"?????????????????????????????????????????????? | | #?????????????????????????????????????????????? | | """#?????????????????????????????????????????????? | | ####?????????????????????????????????????????????? | | ?????????????????????????????????????????????????? | | ?????????????????????????????????????????????????? | | ?????????????????????????????????????????????????? | | ######?#?????????????????????????????????????? ??? | | """""""""##??????????????????????????????????? ? | | " """ """"#??????????????????????????????????# # | | "" " #???????????????????????????????## # | | " """#???????????????????????????????# | | " "#?????????#######???????????????# | | " "##??????### g ###????????????## | | ""###????# @ #???????????## #? | | """#????# # ##???????????# #? | | "#????# ##????????### #?? | | ##???# a ########## #?? | | ##?# #""""## #??? | | # * ##?? | | * #?? | | ##? | | ##;"""""#### ## | | #?;######??#### * | | # # ?? ???????????##### | | #######?? ???????????????### | | " ##???????? ?????????????????### | | """ ""#????????? ???????????????????### | | ""#" "##????????? ????????????????????#" | | """##"""""""##?????????? ????????????????????#### | | """###########???????????????????????????????????# | | ####?????????????????????????????????????????????# | | ?????????????????????????????????????????????????? | | ?????????????????????????????????????????????????? | | ?????????????????????????????????????????????????? | | ?????????????????????????????????????????????????? | | ?????????????????????????????????????????????????? | | ?????????????????????????????????????????????????? | | ?????????????????????????????????????????????????? | +----------------------------------------------------+ Best States ------------- Heat Dissipation 28 Energy Generation 18 Energy Capacity 280 Matter Stores 300 Matter Capacity 300 Sight Range 16 Terrain Scan Density 10 Armor Coverage 150 Evasion (%) 42 Recoil Reduction 2 Item Schematics ----------------- Hcp. Storage Unit | -9/Materials | Hacked Robot Schematics ------------------ None Fabricated ------------ Nothing Alien Tech Used ----------------- None Achievements -------------- None Challenges ------------ None Game ------ Seed FusionImpulsePick Manual? 0 Play Time 00:43:38 Cumulative 128.7 hours Start 2020.08.24 @ 19:48:32 End 2020.08.24 @ 20:34:54 Sessions 1 Manual Loads 0 Difficulty Rogue Special Mode None Game No. 157 Rogue 157 Adventurer 0 Explorer 0 Win Type - Total 2 Types 2/0/0/0/0/0/0 Lore% 50 Gallery% 65 Achievement% 47 Wizard Run 0 Options --------- ASCII 0 Keyboard 0 Movement Numpad Keybinds 0 Fullscreen 2 Font 24/Smallcaps Map View 76x50 Tactical HUD 1 Map Filters NONE Filters NONE Steam 1 RUN: 8167d0e7-969c-455e-a745-00c45cfdbff2